Cogmind - Beta 16 *** ADVENTURER MODE // 2026.01.29 @ 16:09:30 Player: Voldy Result: Destroyed by Y-45 Defender with Beam Rifle Performance ------------- Evolutions (2) 1000 Regions Visited (4) 800 Robots Destroyed (72) 360 Value Destroyed (2569) 2569 Prototype IDs (2) 40 Alien Tech Used (0) 0 Bonus (0) 0 TOTAL SCORE: 4769 Bonus ------- None Cogmind --------- Core Integrity 0/550 Matter 175/300 Energy 135/200 System Corruption 0% Temperature Cool (9) Movement Walking (90) Location -8/Storage Parts ------- > --- POWER (1) -------- (None) > --- PROPULSION (2) --- VSS Leg VSS Leg > --- UTILITY (6) ------ Medium Storage Unit Small Battery Machine Analyzer Signal Interpreter Targeting Computer > --- WEAPON (2) ------- Beam Rifle Light Assault Rifle > --- INVENTORY (10) --- Light Angular Momentum Engine VSS Leg VSS Leg VSS Leg Transport Network Coupler Powered Armor Hardlight Generator Peak State ------------ > --- POWER ------------ Micro Nuclear Core > --- PROPULSION ------- VSS Leg VSS Leg > --- UTILITY ---------- Medium Storage Unit Small Battery Machine Analyzer Signal Interpreter Targeting Computer Recalibrator > --- WEAPON ----------- Shock Rifle Field Laser > --- INVENTORY -------- Micro Nuclear Core VSS Leg VSS Leg VSS Leg VSS Leg Powered Armor Hardlight Generator Pulse Rifle Heavy Assault Rifle Rocket Launcher [Rating: 30] Favorites ----------- Power Micro Nuclear Core Engine Ion Engine Power Core Micro Nuclear Core Propulsion VSS Leg Treads Light Treads Leg VSS Leg Utility Targeting Computer Device Recalibrator Storage Medium Storage Unit Processor Targeting Computer Weapon Light Assault Rifle Energy Gun Field Laser Ballistic Gun Light Assault Rifle Launcher Missile Launcher Build | -11 -10 -10 -8 -8 ------- Run | Yrd Mat Sub Mat Sto Slots Evolved 4 | . . . 4 . Power . | . . . . . Propulsion . | . . . . . Utility 4 | . . . 4 . Weapon . | . . . . . Parts Attached 48 | 6 10 1 26 5 Power 9 | 1 4 . 4 . Engine 5 | 1 3 . 1 . Core 4 | . 1 . 3 . Reactor . | . . . . . Propulsion 11 | 2 2 . 7 . Treads 2 | 2 . . . . Leg 9 | . 2 . 7 . Wheel . | . . . . . Hover . | . . . . . Flight . | . . . . . Utility 11 | 1 2 . 7 1 Device 3 | . . . 2 1 Storage 3 | 1 1 . 1 . Processor 5 | . 1 . 4 . Hackware . | . . . . . Protection . | . . . . . Artifact . | . . . . . Weapon 17 | 2 2 1 8 4 Energy Gun 8 | . 1 1 5 1 Energy Cannon . | . . . . . Ballistic Gun 7 | 2 1 . 3 1 Ballistic Cannon . | . . . . . Launcher 2 | . . . . 2 Special Weapon . | . . . . . Impact Weapon . | . . . . . Slashing Weapon . | . . . . . Piercing Weapon . | . . . . . Special Melee Weapon . | . . . . . Unidentified Prototypes 1 | . 1 . . . Parts Lost 14 | . . 1 8 5 Power 1 | . . . . 1 Propulsion 3 | . . . 3 . Utility 3 | . . . 2 1 Weapon 7 | . . 1 3 3 Highest Loss Streak 2 | . . 1 2 2 To Critical Strikes . | . . . . . Average Backups 8 | 3 8 9 9 9 Power 1 | . 1 2 1 1 Propulsion 2 | 2 1 . 3 3 Utility 3 | . 3 7 2 3 Weapon 1 | 1 1 . 1 1 Tool/Special . | . . . . . Unused Backups 13 | . 4 . 4 5 Power 3 | . 1 . 1 1 Propulsion 5 | . 3 . 1 1 Utility 4 | . . . 1 3 Weapon . | . . . . . Tool/Special 1 | . . . 1 . Average Slot Usage (%) 98 | . 98 98 98 94 Engine 7 | . 13 14 2 . Core 3 | . . . 6 8 Treads 5 | . 17 . . . Leg 16 | . 10 28 17 18 Device 3 | . . . 5 5 Storage 14 | . 14 14 15 18 Processor 23 | . 12 14 32 27 Energy Gun 6 | . 1 8 10 2 Ballistic Gun 14 | . 26 18 7 8 Peak Build Rating 30 | 6 10 10 30 29 Average Rating 18 | 3 7 9 25 26 On Entrance 11 | . 6 10 10 29 Avg Prop Armor Cover (%) . | . . . . . Naked Turns . | . . . . . Heaviest Build 32 | 12 20 20 24 32 Greatest Support 40 | 40 40 20 30 24 Greatest Overweight (x) 6 | 1 . . 6 1 Average Overweight (x) . | . . . . . Largest Inventory Capacity 10 | 8 10 10 10 10 Average Capacity 9 | 7 9 10 10 10 Most Carried 10 | 6 10 10 10 10 Average Carried 9 | 4 8 9 9 9 Final Capacity 10 | 8 10 10 10 10 Final Carried 10 | 6 10 9 10 7 Class Distribution -------------------- 98% | Mutant Dominant Class ---------------- Mutant | -10/Materials Mutant | -10/Subcaves Mutant | -8/Materials Mutant | -8/Storage Resources | -11 -10 -10 -8 -8 ----------- Run | Yrd Mat Sub Mat Sto Matter Collected 1060 | 230 215 21 435 159 Remotely . | . . . . . Salvage Created 3063 | . 922 94 1509 538 Parts 162 | . 54 9 68 31 Haulers Intercepted 1 | . . . 1 . Recyclers Shooed 2 | . 2 . . . Parts Field Recycled . | . . . . . Retrieved Matter . | . . . . . Parts Self-Destructed . | . . . . . Prevented . | . . . . . Parts Restored . | . . . . . Kills | -11 -10 -10 -8 -8 ------- Run | Yrd Mat Sub Mat Sto Combat Hostiles Destroyed 62 | . 17 2 32 11 Guns 56 | . 17 2 30 7 AOE 4 | . . . . 4 Classes Destroyed 11 | . 6 . 5 . Worker 1 | . 1 . . . Builder 1 | . . . 1 . Hauler 1 | . . . 1 . Recycler 4 | . 1 . . 3 Mechanic 1 | . 1 . . . Watcher 2 | . 1 . . 1 Swarmer 7 | . . . 4 3 Grunt 40 | . 16 . 19 5 Sentry 11 | . . . 8 3 Hunter 1 | . . . 1 . Subdweller 3 | . 1 2 . . Best Kill Streak 8 | . 4 1 5 8 Combat Bots Only 4 | . 3 1 4 4 Max Kills in Single Turn 2 | . 1 1 2 2 Gunslinging . | . . . . . Exploded 2 | . . . . 2 Melee . | . . . . . Uniques/NPCs Destroyed . | . . . . . Combat | -11 -10 -10 -8 -8 -------- Run | Yrd Mat Sub Mat Sto Hostile Shots Fired 409 | . 98 15 221 75 Missed 120 | . 31 4 68 17 Hits 289 | . 67 11 153 58 Projectile 289 | . 67 11 153 58 Critical Strikes 7 | . 1 . 5 1 Damage Taken 3329 | . 711 168 1793 657 Core 698 | . 117 27 424 130 Absorbed by Shields . | . . . . . Ignored by Resistances 966 | . 214 50 515 187 Regen/Repaired (Parts) 175 | . . . 175 . Core Remaining (%) 71 | 100 . 42 . . Volleys Fired 231 | . 67 11 110 43 Largest 2 | . 2 2 2 2 Hottest 128 | . 60 60 128 59 Shots Fired 405 | . 134 13 209 49 Gun 394 | . 134 13 209 38 Cannon . | . . . . . Launcher 11 | . . . . 11 Special . | . . . . . Kinetic 239 | . 120 11 77 31 Thermal 144 | . 14 2 121 7 Explosive 11 | . . . . 11 Electromagnetic 11 | . . . 11 . Robot Hit Streak 51 | . 51 16 30 19 Robot Miss Streak 2 | . 2 . 2 1 Penetration Max . | . . . . . Secondary Targets 1 | . . . 1 . Max Gunslinging Chain 1 | . . . 1 . Shots Hit Robots 354 | . 120 12 181 41 Core Hits 165 | . 57 6 73 29 Critical Kills . | . . . . . Critical Parts Destroyed . | . . . . . Critical Strikes 9 | . . . 9 . Burn 9 | . . . 9 . Melee Attacks . | . . . . . Impact . | . . . . . Slashing . | . . . . . Piercing . | . . . . . Sneak Attacks . | . . . . . Combat Hostiles . | . . . . . Follow-up Attacks . | . . . . . Damage Inflicted 5287 | . 1004 101 2910 1272 Guns 4334 | . 989 101 2762 482 Cannons . | . . . . . Explosions 896 | . . . 135 761 Melee . | . . . . . Ramming 57 | . 15 . 13 29 Kinetic 2184 | . 858 80 850 396 Thermal 2102 | . 131 21 1864 86 Explosive 761 | . . . . 761 Electromagnetic 183 | . . . 183 . Impact . | . . . . . Slashing . | . . . . . Piercing . | . . . . . Highest Corruption . | . . . . . Average Corruption . | . . . . . Corruption Purged . | . . . . . Corruption Blocked . | . . . . . Overload Shots . | . . . . . Overflow Damage 4 | . . . . 4 Projectiles . | . . . . . Explosions 4 | . . . . 4 Melee . | . . . . . Knockbacks . | . . . . . Impact . | . . . . . Kinetic . | . . . . . Secondary . | . . . . . Self-Inflicted Damage 89 | . . . 47 42 Shots 4 | . . . 1 3 Rammed 1 | . 1 . . . Targets Rammed 8 | . 5 . 1 2 Kicked 7 | . 4 . 1 2 Crushed . | . . . . . Highest Temperature 388 | . 91 . 388 56 Average Temperature 75 | . 26 . 93 21 Received Heat Transfer 1830 | . 471 9 1044 306 Effects 3 | . . . 3 . Interference 3 | . . . 3 . Siege Activations . | . . . . . Martial Activations . | . . . . . Shielding Activations . | . . . . . Robots Disrupted . | . . . . . Combat Hostiles . | . . . . . Robots Corrupted . | . . . . . Combat Hostiles . | . . . . . Parts Fried 3 | . . . 3 . Impact Corruptions . | . . . . . Robots Melted 2 | . . . 2 . Combat Hostiles 2 | . . . 2 . Parts Melted 12 | . 1 . 11 . Heat Transferred 5252 | . 300 50 4680 222 Parts Sabotaged . | . . . . . Parts Stolen . | . . . . . Parts Stripped . | . . . . . Power Chain Reactions 1 | . . . 1 . Alert | -11 -10 -10 -8 -8 ------- Run | Yrd Mat Sub Mat Sto Maximum Alert Level 1 | . . . 1 1 Low Security (%) 88 | 100 100 . 83 75 Level 1 11 | . . . 16 24 Level 2 . | . . . . . Level 3 . | . . . . . Level 4 . | . . . . . Level 5 . | . . . . . High Security . | . . . . . Max Security . | . . . . . Peak Influence 282 | . 115 . 282 270 Initial 51 | . . . . 51 Average 77 | . 37 . 103 103 Influence Increases 1893 | . 453 . 1031 409 Destroy 0b10 Robot/C 1180 | . 320 . 640 220 Destroy 0b10 Robot/NC 50 | . 20 . 10 20 Destroy Leader 296 | . 72 . 172 52 Successful Hack 53 | . 11 . 37 5 Disable Machine 9 | . . . . 9 Destroy Structure 50 | . . . 7 43 Partial Spotted 15 | . . . 15 . Lose Combat Pursuer 240 | . 30 . 150 60 Influence Decreases 1643 | . 453 . 889 301 Entered New Map 91 | . . . . 91 Time Decay 1432 | . 453 . 819 160 Lost Part 120 | . . . 70 50 Squads Dispatched 10 | . 3 . 4 3 Investigation 5 | . 3 . 2 . Extermination . | . . . . . Reinforcement 5 | . . . 2 3 Assault . | . . . . . Garrison . | . . . . . Intercept . | . . . . . Searches Triggered . | . . . . . Construction Impeded 1 | . . . . 1 Haulers Reinforced . | . . . . . Active Scanning Responses . | . . . . . Cargo Convoy Interrupts . | . . . . . Stealth | -11 -10 -10 -8 -8 --------- Run | Yrd Mat Sub Mat Sto Distress Signals 9 | . 2 . 4 3 Communications Jammed . | . . . . . Distress Signals . | . . . . . Times Spotted 116 | . 34 3 60 19 Peak Tracking Total 6 | . 4 2 5 6 Tactical Retreats 12 | . 3 1 6 2 Traps | -11 -10 -10 -8 -8 ------- Run | Yrd Mat Sub Mat Sto Traps Triggered 3 | . 2 . . 1 Indirectly . | . . . . . Trap Hack Attempts . | . . . . . Triggered . | . . . . . Disarmed . | . . . . . Reprogrammed . | . . . . . Reused . | . . . . . Traps Extracted . | . . . . . Installed . | . . . . . Triggered . | . . . . . Machines | -11 -10 -10 -8 -8 ---------- Run | Yrd Mat Sub Mat Sto Machines Disabled 1 | . . . . 1 Max in Single Turn 1 | . . . . 1 Machines Repaired . | . . . . . Machines Dismantled . | . . . . . Machines Sabotaged . | . . . . . Overloaded Fab Kills . | . . . . . Hacking | -11 -10 -10 -8 -8 --------- Run | Yrd Mat Sub Mat Sto Machines Accessed 16 | . 6 . 8 2 Terminals 9 | . 4 . 3 2 Fabricators . | . . . . . Repair Stations 2 | . . . 2 . Recycling Units 2 | . 2 . . . Scanalyzers 2 | . . . 2 . Garrison Access 1 | . . . 1 . Total Hacks 55 | . 23 . 27 5 Successful 33 | . 15 . 14 4 Failed 21 | . 8 . 12 1 Catastrophic 2 | . 1 . 1 . Database Lockouts 1 | . . . 1 . Manual 17 | . 8 . 7 2 Terminals 30 | . 16 . 9 5 Fabricators . | . . . . . Repair Stations 9 | . . . 9 . Recycling Units 7 | . 7 . . . Scanalyzers 7 | . . . 7 . Garrison Access 2 | . . . 2 . Terminal Hacks 15 | . 8 . 3 4 Record 3 | . 3 . . . Open Door 1 | . . . . 1 Terminal Index 1 | . . . 1 . Alert Level 1 | . . . 1 . Locate Traps 1 | . 1 . . . Dispatch Records 2 | . 1 . . 1 Patrol Status 1 | . . . . 1 Transport Status 1 | . . . . 1 Hauler Manifests 2 | . 1 . 1 . Zone Layout 2 | . 2 . . . Fabricator Hacks . | . . . . . Repair Station Hacks 7 | . . . 7 . Scan Component 4 | . . . 4 . Repair 3 | . . . 3 . Recycling Unit Hacks 7 | . 7 . . . Recycle Component 1 | . 1 . . . Process 2 | . 2 . . . Report Inventory 2 | . 2 . . . Retrieve Matter 2 | . 2 . . . Scanalyzer 4 | . . . 4 . Insert Component 1 | . . . 1 . Retrieve Study 3 | . . . 3 . Garrison Access Hacks . | . . . . . Unauthorized Hacks . | . . . . . Terminals . | . . . . . Fabricators . | . . . . . Repair Stations . | . . . . . Recycling Units . | . . . . . Scanalyzers . | . . . . . Garrison Access . | . . . . . Data Cores Recovered . | . . . . . Used . | . . . . . Hacking Detections 13 | . 5 . 7 1 Full Trace Events 4 | . 2 . 2 . Feedback Events . | . . . . . Feedback Blocked . | . . . . . Robot Schematics Acquired . | . . . . . Robots Built . | . . . . . Authchips . | . . . . . Time . | . . . . . Total Robot Build Rating . | . . . . . Part Schematics Acquired . | . . . . . Parts Built . | . . . . . Authchips . | . . . . . Time . | . . . . . Total Part Build Rating . | . . . . . Part Studies Acquired 2 | . . . 2 . Parts Repaired 3 | . . . 3 . Time 120 | . . . 120 . Parts Recycled 1 | . 1 . . . Recycled Matter 175 | . 175 . . . Retrieved Matter 412 | . 412 . . . Retrieved Components . | . . . . . Parts Scanalyzed . | . . . . . Part Schematics Acquired . | . . . . . Parts Damaged . | . . . . . Bothacking | -11 -10 -10 -8 -8 ------------ Run | Yrd Mat Sub Mat Sto Used RIF Installer . | . . . . . Robots Hacked . | . . . . . Non-combat . | . . . . . Combat . | . . . . . Robot Hacks Applied . | . . . . . Relay Couplers Released . | . . . . . Fabnet Peak Effective % . | . . . . . Robots Rewired . | . . . . . Allies Hacked . | . . . . . Hacks Repelled . | . . . . . Allies | -11 -10 -10 -8 -8 -------- Run | Yrd Mat Sub Mat Sto Total Allies . | . . . . . Largest Group . | . . . . . Highest-Rated Group . | . . . . . Highest-Rated Ally . | . . . . . Total Orders . | . . . . . Ally Attacks . | . . . . . Total Damage . | . . . . . Kills . | . . . . . Allies Corrupted . | . . . . . Allies Melted . | . . . . . Intel | -11 -10 -10 -8 -8 ------- Run | Yrd Mat Sub Mat Sto Active Infowar (turns) 2151 | . . . 1824 327 Machine Analysis 2151 | . . . 1824 327 Robot Analysis Total . | . . . . . Derelict Logs Recovered . | . . . . . Drone Launches . | . . . . . Drone Recoveries . | . . . . . Exploration | -11 -10 -10 -8 -8 ------------- Run | Yrd Mat Sub Mat Sto Turns Passed 3841 | 60 1289 341 1824 327 Spaces Moved 2413 | 30 717 264 1235 167 Core 12 | 8 . . 4 . Treads 392 | 22 370 . . . Legs 2009 | . 347 264 1231 167 Wheels . | . . . . . Hover . | . . . . . Flight . | . . . . . Fastest Speed 50 | 50 120 120 90 90 Average Speed 113 | 142 140 120 94 129 Slowest Speed 350 | 160 160 120 350 180 Overloaded Moves . | . . . . . Propulsion Burnouts . | . . . . . Robots Hopped . | . . . . . Potential Cave-ins . | . . . . . Cave-ins Triggered . | . . . . . Exploration Rate (%) 42 | 4 95 16 65 31 Regions Visited 4 Branch Regions 2 Pre-discovered Areas . | . . . . . Known Exits Taken 1 | . . . 1 . Unknown Exits Taken 3 | 1 1 1 . . Scrap Searched . | . . . . . Spaces Dug . | . . . . . Terrain Destroyed 78 | . . . 3 75 Melee . | . . . . . Projectile . | . . . . . AOE 78 | . . . 3 75 Terrain Rammed . | . . . . . Walls Destroyed . | . . . . . Machines Disabled . | . . . . . Actions | -11 -10 -10 -8 -8 --------- Run | Yrd Mat Sub Mat Sto Total 3143 | 47 893 277 1701 225 Wait 329 | . 57 2 269 1 Move 2409 | 29 716 263 1234 167 Hop . | . . . . . Pick Up 74 | 12 22 . 36 4 Fast Attach . | . . . . . Attach 52 | 6 11 1 27 7 Detach 7 | . 2 . 5 . Swap . | . . . . . Drop 33 | . 13 . 19 1 Fire 231 | . 67 11 110 43 Melee . | . . . . . Ram . | . . . . . Kick 7 | . 4 . 1 2 Crush 1 | . 1 . . . Escape Stasis . | . . . . . Rewire . | . . . . . Trap . | . . . . . Miscellaneous . | . . . . . Route ------- -11/Scrapyard -10/Materials (discovered 5 exits: [*Mat x3] / [*Min] / [*Sub]) -10/Subcaves -8/Materials (discovered 3 exits: *Fac x2 / *Sto) -8/Storage History --------- Turn | Location | Event 21 | -11/Scrapyard | Discovered new exit (range 16) 61 | -11/Scrapyard | Entered Materials 145 | -10/Materials | Discovered new exit (range 5) 299 | -10/Materials | Discovered new exit (range 11) 311 | -10/Materials | Build established: Mutant 396 | -10/Materials | Discovered new exit (range 13) 813 | -10/Materials | Discovered new exit (range 11) 1072 | -10/Materials | Discovered new exit (range 14) 1161 | -10/Materials | Derelicts attacked the area 1350 | -10/Materials | Entered Subcaves 1383 | -10/Subcaves | Shifting Twisted Machinery released Sub. Laser 1384 | -10/Subcaves | Shifting Twisted Machinery released Sub. Monowheel 1410 | -10/Subcaves | Discovered new exit (range 13) 1486 | -10/Subcaves | Core integrity fell below 50% 1691 | -10/Subcaves | Entered Materials 1691 | -8/Materials | Evolved 4 slots: Utility x4 2111 | -8/Materials | Discovered new exit (range 8) 2295 | -8/Materials | Identified exit to Storage 2366 | -8/Materials | Found Powered Armor 2379 | -8/Materials | Discovered new exit (range 15) 2459 | -8/Materials | Central database locked down 2744 | -8/Materials | Core integrity fell below 50% 2862 | -8/Materials | Discovered new exit (range 4) 2933 | -8/Materials | Repaired Mic. Nuclear Core 2973 | -8/Materials | Repaired VSS Leg 3241 | -8/Materials | Repaired VSS Leg 3258 | -8/Materials | Identified exit to Factory 3515 | -8/Materials | Entered Storage 3638 | -8/Storage | Core integrity fell below 20% 3842 | -8/Storage | Destroyed by Y-45 Defender with Beam Rifle Last Messages --------------- 03786_ Repair Station x1 03788_ >> Machine Analyzer network decryption results: 03788_ Repair Station x1 03788_ U-05 Engineer lays Concrete. 03793_ Missile Launcher destroyed. 03800_ S-10 Pest destroyed. 03806_ Destroyed Flight Unit. 03810_ S-10 Pest destroyed. 03814_ Acquired 38 matter. 03820_ Acquired Lgt. Assault Rifle. 03824_ Triggered Blade Trap. 03824_ Massive razor-sharp blades shoot up from within the floor. 03824_ Drone Bay severed. 03824_ Mic. Nuclear Core severed. 03824_ Lgt. Assault Rifle severed. 03826_ R-06 Scavenger collects Drone Bay. 03826_ Acquired Lgt. Assault Rifle. 03829_ R-06 Scavenger collects Mic. Nuclear Core. 03832_ Acquired 10 matter. 03836_ Critical hit (Burn: +37). Map ----- +----------------------------------------------------+ | ######?????????### ?????????????????????? | | ??? ?????????????????????? | | ######??????????## #????????????????????? | | ???????????????## # ##??????????????????? | | ??????????????## ## ####????????????????? | | ??????????????# #????????????????? | | ############### %########### ?????? | | % %! % ??????? | | #+#######+##+## # # ####?????????????? | | # ###### % # ##???????????????? | | # # !!!# # a #???????????????? | | # [ # """ # ###??????????????? | | ##T#!!!!# """ ### ## r# #??????????????? | | ?######## """ + # #??????????????? | | ????????# ######### ###??????????????? | | ????????#####+#### ### # ##????????? ?????? | | ????????????? #?# # ##???????? #????? | | ????????????? #?# """" #o######### #????? | | ????????????? #?# """"=# /! u #????? | | ????????????????# """" g / #????? | | ????????????????# """"*#g ]] """??? | | ????????????????# = = =# ^ ^ ][ """??? | | ????????????????##+##### R"??? | | ?????????????????# #???# """??? | | ???????"""?# ### ##### #????? | | ???????"""?+ Y @ #????? | | ???????"""?# ##########"Y"##"T"# #????? | | ????????????????????????#"""#?####?###????? | | ?????????????????????????####?????????????? | | ??????????????????????????????????????????? | | | | | | | | | | | | | | | | | | | | | | | | | | | | | | | | | | | | | | | | | +----------------------------------------------------+ Best States ------------- Heat Dissipation 50 Energy Generation 15 Energy Capacity 280 Matter Stores 300 Matter Capacity 300 Sight Range 16 Terrain Scan Density 10 Resistance: KI 20 Resistance: TH 20 Resistance: EX 20 Resistance: EM 20 Resistance: I 20 Resistance: S 20 Resistance: P 20 Evasion (%) 57 Targeting Accuracy 10 Recoil Reduction 2 Offensive Hacking 10 Item Schematics ----------------- None Robot Schematics ------------------ None Fabricated ------------ Nothing Repaired ---------- Mic. Nuclear Core | 36% | -8/Materials VSS Leg | 32% | -8/Materials VSS Leg | 8% | -8/Materials Studied --------- Field Laser | -8/Materials | Hacked Rocket Launcher | -8/Materials | Hacked Alien Tech Used ----------------- None Achievements -------------- Sprinter We Love MA Challenges ------------ None Game ------ Seed DamperJammingReconfigurator Manual? 0 Play Time 00:51:07 Cumulative 6.4 hours Start 2026.01.28 @ 14:53:19 End 2026.01.29 @ 16:09:30 Sessions 3 Manual Loads 0 Difficulty Adventurer Special Mode None Game No. 16 Rogue 15 Adventurer 1 Explorer 0 Win Type - Total 0 Types 0/0/0/0/0/0/0/0/0/0 Lore% 3 Gallery% 10 Achievement% 9 Wizard Run 0 Options --------- Layout 0 ASCII 0 Keyboard 0 Movement Numpad Keybinds 0 Fullscreen 2 Font 18/SmallcapsGlow Map View 76x50 Zoom Use 0% Tactical HUD 1 Map Filters NONE Filters NONE Steam 1 RUN: 958eda28-19bf-4383-959a-17a90b1acb04